bitfinex/quotes_SOLUSD_20250817
["timestamp","ask_amount","ask_price","bid_price","bid_amount"]
[1755396473792,0.76,188.99,188.98,126.36103444]
[1755396474085,0.76,188.99,188.98,124.24121144]
[1755396474889,0.76,188.99,188.98,126.36103444]
[1755396475470,0.76,188.99,188.98,124.24121144]
[1755396476057,0.76,188.99,188.98,126.36103444]
[1755396476572,0.06,188.99,188.98,126.36103444]
[1755396478069,0.76,188.99,188.98,126.36103444]
[1755396478311,0.76,188.99,188.98,124.24121144]
[1755396478456,0.76,188.99,188.98,126.36103444]
[1755396478783,0.76,188.99,188.98,124.24121144]
[1755396479741,0.76,188.99,188.98,132.51979624]
[1755396480869,0.76,188.99,188.98,85.19156524]
[1755396481181,0.76,188.99,188.98,116.86]
[1755396481475,0.76,188.99,188.98,39.0296462]
[1755396482984,0.76,188.99,188.98,44.32121144]
[1755396490588,0.76,188.99,188.98,42.25156524]
[1755396490771,0.76,188.99,188.98,39.0296462]
[1755396490975,0.76,188.99,188.98,36.96]
[1755396496185,0.76,188.99,188.98,39.0296462]
[1755396498265,4.32376519,188.99,188.97,5.29172161]
[1755396498473,4.32376519,188.99,188.98,2.0696462]
[1755396498474,0.06,188.99,188.98,2.0696462]
[1755396498795,3.62376519,188.99,188.98,2.0696462]
[1755396499008,4.30376519,188.99,188.98,2.0696462]
[1755396509505,4.30376519,188.99,188.97,36.96]
[1755396509707,4.24376519,188.98,188.97,39.0296462]
[1755396510201,4.24376519,188.98,188.97,36.96]
[1755396510406,4.24376519,188.98,188.97,39.0296462]
[1755396510823,0.68,188.98,188.97,39.0296462]
[1755396511100,4.24495677,188.98,188.97,36.96]
[1755396511504,4.24495677,188.98,188.95,36.99]
[1755396511705,4.24495677,188.97,188.95,36.99]
[1755396511909,0.68,188.96,188.95,39.0596462]
[1755396518391,0.06,188.97,188.95,44.35205159]
[1755396518604,0.06,188.97,188.96,2.0696462]
[1755396519588,0.06,188.97,188.96,7.36177151]
[1755396521612,4.30567016,188.97,188.96,7.36177151]
[1755396522317,4.30567016,188.97,188.96,2.0696462]
[1755396523900,4.30567016,188.97,188.96,7.36177151]
[1755396524099,3.62567016,188.97,188.96,7.36177151]
[1755396524617,3.62567016,188.97,188.96,5.29212531]
[1755396524823,3.62567016,188.97,188.96,7.36177151]
[1755396526406,0.06,188.97,188.96,102.93798708]
[1755396531131,0.06,188.97,188.96,165.89798708]
[1755396531307,0.06,188.99,188.98,51.45444657]
[1755396531510,0.06,188.99,188.98,88.94360309]
[1755396531713,0.06,188.99,188.98,88.98444657]
[1755396532924,0.06,188.99,188.98,78.06621557]
[1755396533122,0.06,188.99,188.98,80.13586177]
[1755396533421,0.77,188.99,188.98,70.32121144]
[1755396533623,0.06,188.99,188.98,70.32121144]
[1755396537332,0.06,188.99,188.98,68.25156524]
[1755396537510,0.06,188.99,188.98,70.32121144]
[1755396537708,0.77,188.99,188.98,70.32121144]
[1755396538433,0.77,188.99,188.98,7.36121144]
[1755396538634,0.77,188.99,188.98,39.0096462]
[1755396538835,0.77,188.99,188.98,36.94]
[1755396539019,0.77,188.99,188.98,39.0096462]
[1755396540214,0.06,188.99,188.98,44.30121144]
[1755396541016,0.77,188.99,188.98,44.30121144]
[1755396542739,0.77,188.99,188.98,39.0096462]
[1755396544629,0.77,188.99,188.98,40.17566384]
[1755396544836,0.77,188.99,188.98,45.46722908]
[1755396551212,0.77,188.99,188.98,40.17566384]
[1755396551920,7.56965161,188.99,188.97,0.03]
[1755396552237,3.56398777,188.98,188.97,0.03]
[1755396552417,4.27398777,188.98,188.97,0.03]
[1755396555041,8.23359685,188.98,188.97,0.03]
[1755396560744,8.23288061,188.98,188.97,0.03]
[1755396562833,3.56398777,188.98,188.97,81.88187941]
[1755396563029,0.06,188.99,188.97,85.11754325]
[1755396563348,0.06,188.99,188.98,7.04132768]
[1755396563726,0.06,188.99,188.98,12.33289292]
[1755396564157,0.06,188.99,188.98,9.09722908]
[1755396564460,0.06,188.99,188.98,8.52722908]
[1755396572376,0.76,188.99,188.98,3.23566384]
[1755396576061,0.76,188.99,188.97,68.26179237]
[1755396576264,0.76,188.99,188.97,62.97]
[1755396576575,0.06,188.99,188.97,36.97]
[1755396576772,4.26380085,188.98,188.97,0.03]
[1755396577880,4.26380085,188.98,188.97,3.26566384]
[1755396578882,4.26380085,188.98,188.97,0.03]
[1755396586988,13.51764639,188.98,188.97,0.03]
[1755396587987,8.22608115,188.98,188.97,0.03]
[1755396589266,13.51764639,188.98,188.97,0.03]
[1755396589790,8.22608115,188.98,188.97,0.03]
[1755396590788,13.51764639,188.98,188.97,0.03]
[1755396597300,13.57764639,188.98,188.97,0.03]
[1755396599209,13.57551142,188.98,188.97,0.03]
[1755396599708,13.57537032,188.98,188.97,0.03]
[1755396600211,16.81103416,188.98,188.97,0.03]
[1755396600407,21.26307151,188.98,188.97,0.03]
[1755396600608,54.96740767,188.98,188.97,0.03]
[1755396600805,8.28380508,188.98,188.97,0.03]
[1755396601625,7.58380508,188.98,188.97,3.26566384]
[1755396601790,3.62380085,188.98,188.97,3.83566384]
[1755396602919,3.62380085,188.98,188.97,2.67069288]
[1755396603101,3.62380085,188.98,188.97,2.10069288]
[1755396604713,3.62380085,188.98,188.97,3.26572386]
[1755396609214,10.13424275,188.98,188.97,0.03]
[1755396609407,14.0950455,188.98,188.97,0.03]
[1755396612538,7.5846036,188.98,188.97,3.26572386]
[1755396612727,3.62380085,188.98,188.97,3.83572386]
[1755396612908,3.62380085,188.98,188.97,3.26572386]
[1755396613115,3.62380085,188.98,188.97,0.03]
[1755396613413,4.31380085,188.98,188.97,0.03]
[1755396613729,8.27535841,188.98,188.97,0.03]
[1755396613935,4.31380085,188.98,188.97,0.03]
[1755396615629,9.60536609,188.98,188.97,0.03]
[1755396616324,13.56793213,188.98,188.97,0.03]
[1755396617260,8.27636689,188.98,188.97,0.03]
[1755396620841,12.72840424,188.98,188.97,0.03]
[1755396621631,12.73138385,188.98,188.97,0.03]
[1755396624772,12.73152524,188.98,188.97,0.03]
[1755396625157,18.02309048,188.98,188.97,0.03]
[1755396626135,16.80677699,188.98,188.96,0.03]
[1755396626339,48.88408841,188.97,188.96,0.03]
[1755396627842,48.88408841,188.97,188.95,0.03]
[1755396628045,8.19948789,188.96,188.95,0.03]
[1755396628441,17.95262374,188.96,188.95,0.03]
[1755396630986,18.4815004,188.96,188.95,0.03]
[1755396634380,13.18937509,188.96,188.95,0.03]
[1755396634566,12.51937509,188.96,188.95,0.03]
[1755396635001,13.18937509,188.96,188.95,0.03]
[1755396635708,14.02048986,188.96,188.95,0.03]
[1755396635868,26.0,188.94,188.93,0.03]
[1755396636083,85.85334276,188.94,188.93,0.03]
[1755396636286,86.52334276,188.94,188.93,0.03]
[1755396636592,82.55765572,188.94,188.93,0.03]
[1755396636792,86.52020864,188.94,188.93,0.03]
[1755396637299,80.57363979,188.94,188.93,0.03]
[1755396637482,86.5150224,188.94,188.93,0.03]
[1755396637884,86.5150224,188.94,188.91,0.03]
[1755396638202,8.52896967,188.92,188.91,0.03]
[1755396638391,53.9042001,188.92,188.91,0.03]
[1755396638591,54.5742001,188.92,188.91,0.03]
[1755396638791,51.33847624,188.92,188.91,0.03]
[1755396639396,55.79094034,188.92,188.91,0.03]
[1755396639597,54.5742001,188.92,188.91,0.03]
[1755396640000,15.10621557,188.91,188.9,0.03]
[1755396640312,37.76528626,188.91,188.9,0.03]
[1755396641318,26.0,188.88,188.87,0.03]
[1755396641510,70.09952471,188.88,188.87,0.03]
[1755396641713,70.62840137,188.88,188.87,0.03]
[1755396641900,71.29840137,188.88,188.87,0.03]
[1755396642298,68.06267751,188.88,188.87,0.03]
[1755396642621,67.39267751,188.88,188.87,0.03]
[1755396645311,4.09267751,188.88,188.87,0.03]
[1755396645517,3.56380085,188.88,188.87,3.83572386]
[1755396645702,0.52887666,188.9,188.87,3.83572386]
[1755396645906,3.55179856,188.89,188.88,3.80572386]
[1755396646288,3.55179856,188.89,188.87,3.26572386]
[1755396646492,3.55176842,188.88,188.87,3.26572386]
[1755396646693,0.52887666,188.9,188.87,3.26572386]
[1755396646892,3.55157714,188.89,188.87,3.83572386]
[1755396647126,0.52887666,188.9,188.87,3.83572386]
[1755396647292,3.55157714,188.89,188.88,3.23572386]
[1755396648816,3.55157714,188.89,188.87,0.6]
[1755396649019,0.67,188.88,188.87,0.03]
[1755396649327,4.22171874,188.88,188.87,0.03]
[1755396649500,4.7505954,188.88,188.87,0.03]
[1755396651619,4.0805954,188.88,188.87,0.03]
[1755396657118,4.7505954,188.88,188.87,0.03]
[1755396658096,10.04496219,188.88,188.87,0.03]
[1755396658408,13.28068605,188.88,188.87,0.03]
[1755396660014,17.22680389,188.88,188.87,0.03]
[1755396660210,19.34921389,188.88,188.87,0.03]
[1755396660410,19.34951634,188.88,188.87,0.03]
[1755396663617,26.0,188.86,188.85,0.03]
[1755396663948,74.50273955,188.86,188.85,0.03]
[1755396664121,79.61219422,188.86,188.85,0.03]
[1755396665043,84.90712167,188.86,188.85,0.03]
[1755396665245,80.96070138,188.86,188.85,0.03]
[1755396665536,84.90790616,188.86,188.85,0.03]
[1755396665748,84.90692772,188.86,188.85,0.03]
[1755396666331,87.02967572,188.86,188.85,0.03]
[1755396666650,87.02924293,188.86,188.85,0.03]
[1755396667238,102.1354585,188.86,188.85,0.03]
[1755396667947,97.69600383,188.86,188.84,0.03]
[1755396668158,21.13753517,188.85,188.84,0.03]
[1755396668456,21.13729915,188.85,188.84,0.03]
[1755396668827,38.36637472,188.85,188.84,0.03]
[1755396671149,34.42081719,188.85,188.84,0.03]
[1755396671356,38.36750257,188.85,188.84,0.03]
[1755396672660,33.92841138,188.85,188.84,0.03]
[1755396673241,34.45728804,188.85,188.84,0.03]
[1755396673558,40.39075509,188.85,188.84,0.03]
[1755396673766,34.45728804,188.85,188.83,0.03]
[1755396673975,89.71034355,188.84,188.83,0.03]
[1755396674277,69.6438106,188.84,188.83,0.03]
[1755396674562,71.7668966,188.84,188.83,0.03]
[1755396674935,75.83342955,188.84,188.82,0.03]
[1755396675131,17.86360004,188.83,188.82,0.03]
[1755396675736,19.98668604,188.83,188.8,0.03]
[1755396675932,53.91017712,188.82,188.8,0.03]
[1755396676373,21.55402573,188.81,188.8,1e-08]
[1755396676541,44.33647653,188.81,188.8,1e-08]
[1755396677371,46.46001353,188.81,188.8,1e-08]
[1755396677878,10.0,188.79,188.78,1e-08]
[1755396678081,41.10621557,188.76,188.69,0.2]
[1755396678379,3.23572386,188.7,188.69,0.2]
[1755396678579,48.46300464,188.7,188.69,0.2]
[1755396679248,48.46300464,188.7,188.69,0.77]
[1755396679849,48.45887448,188.7,188.69,0.77]
[1755396680374,48.45705549,188.7,188.69,0.77]
[1755396680575,53.75647255,188.7,188.69,0.2]
[1755396681285,49.81573632,188.7,188.69,0.2]
[1755396682486,41.2805954,188.7,188.69,0.77]
[1755396682665,4.0805954,188.7,188.69,0.77]
[1755396682865,3.55171874,188.7,188.69,4.00572386]
[1755396683281,4.0805954,188.7,188.69,0.77]
[1755396684189,3.55171874,188.7,188.69,0.77]
[1755396685591,3.55171874,188.7,188.69,4.00572386]
[1755396685804,3.55171874,188.7,188.69,9.30542177]
[1755396685963,0.52887666,188.75,188.69,9.30542177]
[1755396686162,3.53896742,188.74,188.72,3.23572386]
[1755396686363,3.53896742,188.73,188.69,5.49969791]
[1755396686575,3.53896742,188.72,188.69,5.49969791]
[1755396686771,0.52887666,188.75,188.69,5.49969791]
[1755396687092,3.53855734,188.74,188.7,0.57]
[1755396687384,3.53855734,188.73,188.7,0.57]
[1755396687705,0.52887666,188.75,188.72,3.23572386]
[1755396687869,3.53839016,188.74,188.72,3.80572386]
[1755396688063,3.53839016,188.73,188.72,3.80572386]
[1755396690974,17.14907115,188.8,188.72,9.1045793]
[1755396690975,3.53710543,188.76,188.72,9.1045793]
[1755396691188,0.52887666,188.79,188.75,3.23572386]
[1755396691390,0.52887666,188.79,188.78,3.23572386]
[1755396691700,4.06666927,188.79,188.78,3.23572386]
[1755396692404,4.06666927,188.79,188.77,3.23572386]
[1755396692596,3.53779261,188.78,188.77,3.23572386]
[1755396695699,3.53779261,188.78,188.75,3.23572386]
[1755396695700,4.21779261,188.78,188.75,3.23572386]
[1755396696011,4.74666927,188.77,188.73,3.23572386]
[1755396696175,4.21779261,188.76,188.73,3.23572386]
[1755396696381,4.06666927,188.75,188.73,3.23572386]
[1755396696701,3.53779261,188.74,188.73,3.23572386]
[1755396697206,3.53779261,188.74,188.73,3.80572386]
[1755396698806,3.53779261,188.74,188.73,3.23572386]
[1755396699602,3.53779261,188.74,188.69,0.2]
[1755396699603,3.53779261,188.74,188.72,3.23572386]
[1755396699914,0.68,188.74,188.72,3.23572386]
[1755396700308,3.54591618,188.73,188.72,3.23572386]
[1755396700911,3.54591618,188.73,188.7,0.57]
[1755396701096,0.68,188.75,188.72,3.23572386]
[1755396701402,4.22715792,188.74,188.72,3.23572386]
[1755396701602,0.68,188.74,188.73,3.23572386]
[1755396701801,4.22809295,188.74,188.73,3.23572386]
[1755396702306,3.54809295,188.74,188.73,3.23572386]
[1755396703487,3.54809295,188.74,188.71,5.86904576]
[1755396703488,4.22809295,188.74,188.72,3.23572386]
[1755396703706,3.54809295,188.73,188.72,3.23572386]
[1755396706704,3.54809295,188.73,188.72,0.57]
[1755396707102,3.54809295,188.73,188.72,3.23572386]
[1755396708503,3.54809295,188.73,188.72,8.5345793]
[1755396709617,0.52887666,188.8,188.72,9.1045793]
[1755396709927,3.5558802,188.79,188.73,0.57]
[1755396710120,3.5558802,188.78,188.73,0.57]
[1755396710299,3.5558802,188.77,188.73,0.57]
[1755396710498,3.5558802,188.76,188.72,55.66599405]
[1755396710699,0.72,188.79,188.74,0.57]
[1755396710913,3.556366,188.78,188.74,0.57]
[1755396711115,3.55651312,188.77,188.75,3.23572386]
[1755396711320,3.55651312,188.76,188.75,3.23572386]
[1755396711638,4.27651312,188.76,188.75,3.23572386]
[1755396711805,4.27651312,188.76,188.73,5.29841929]
[1755396712129,3.55724114,188.75,188.74,3.23572386]
[1755396712500,4.27724114,188.75,188.74,3.23572386]
[1755396713627,4.27724114,188.75,188.73,3.23572386]
[1755396713922,4.27724114,188.74,188.73,3.23572386]
[1755396714331,4.27724114,188.74,188.72,0.03]
[1755396714502,4.27724114,188.73,188.72,3.26572386]
[1755396714707,3.55724114,188.73,188.72,3.26572386]
[1755396714907,3.55724114,188.73,188.72,3.83572386]
[1755396715317,3.55724114,188.73,188.72,8.5645793]
[1755396718941,3.56287597,188.73,188.72,8.5645793]
[1755396720037,3.56338062,188.73,188.72,8.5645793]
[1755396721408,4.28338062,188.73,188.72,3.26572386]
[1755396722821,4.28338062,188.73,188.72,0.03]
[1755396725133,4.28338062,188.73,188.72,3.26572386]
[1755396730243,8.7376064,188.73,188.72,3.26572386]
[1755396731823,8.7376064,188.73,188.72,0.03]
[1755396732014,8.7376064,188.73,188.72,3.26572386]
[1755396739239,8.7376064,188.73,188.72,0.03]
[1755396744968,4.28338062,188.73,188.71,3.23572386]
[1755396745257,8.70937559,188.72,188.71,3.23572386]
[1755396745858,17.36507642,188.72,188.7,0.03]
[1755396746074,17.27692963,188.71,188.7,0.03]
[1755396746239,23.19308932,188.71,188.7,0.03]
[1755396746763,17.27692963,188.71,188.7,0.03]
[1755396747870,14.04120577,188.71,188.7,0.03]
[1755396748040,17.27692963,188.71,188.7,0.03]
[1755396749362,2.27692963,188.71,188.7,0.03]
[1755396750664,12.9973647,188.71,188.7,0.03]
[1755396751368,9.2148601,188.71,188.7,0.03]
[1755396755168,13.6773647,188.71,188.7,0.03]
[1755396755468,9.2148601,188.71,188.7,0.03]
[1755396755970,13.6773647,188.71,188.7,0.03]
[1755396757655,39.6773647,188.71,188.7,0.03]
[1755396759368,5.29941706,188.7,188.69,0.2]
[1755396759568,46.25514092,188.7,188.69,0.2]
[1755396759942,46.25514092,188.7,188.66,0.03]
[1755396760149,4.45500232,188.68,188.66,0.68]
[1755396761372,3.56369074,188.67,188.66,0.68]
[1755396761765,3.56369074,188.67,188.66,3.91572386]
[1755396763568,3.56369074,188.67,188.66,0.68]
[1755396763859,3.56369074,188.67,188.66,3.91572386]
[1755396764550,3.56369074,188.67,188.66,9.21626451]
[1755396764972,37.04,188.72,188.66,9.21626451]
[1755396765156,3.62272848,188.71,188.67,0.72]
[1755396765357,3.56272848,188.7,188.67,0.72]
[1755396765561,0.06,188.71,188.68,5.2999788]
[1755396765765,0.06,188.71,188.69,0.72]
[1755396765766,3.5624874,188.7,188.69,0.72]
[1755396766458,3.5624874,188.7,188.69,3.95572386]
[1755396766862,0.06,188.71,188.69,3.95572386]
[1755396767062,0.06,188.71,188.7,3.95572386]
[1755396767265,3.62276668,188.71,188.7,3.95572386]
[1755396768979,3.62311533,188.71,188.7,3.95572386]
[1755396770773,3.62311533,188.71,188.67,0.72]
[1755396770774,4.27311533,188.71,188.67,0.72]
[1755396770954,3.56311533,188.7,188.69,3.23572386]
[1755396771153,4.21311533,188.7,188.69,3.23572386]
[1755396771384,4.21311533,188.7,188.67,6.02023689]
[1755396771559,0.65,188.7,188.69,3.23572386]
[1755396771755,4.21379033,188.7,188.69,3.23572386]
[1755396772582,3.56379033,188.7,188.69,3.23572386]
[1755396773871,3.56379033,188.7,188.68,3.23572386]
[1755396773872,4.21379033,188.7,188.68,3.23572386]
[1755396774177,4.21379033,188.69,188.68,3.23572386]
[1755396775005,12.74929831,188.69,188.66,0.03]
[1755396775182,4.21379033,188.68,188.66,0.03]
[1755396775372,3.56379033,188.67,188.66,0.03]
[1755396775576,4.21379033,188.67,188.66,0.03]
[1755396776782,9.51405004,188.67,188.66,0.03]
[1755396776991,12.7497739,188.67,188.66,0.03]
[1755396778280,17.20366806,188.67,188.66,0.03]
[1755396778878,17.20646247,188.67,188.66,0.03]
[1755396779793,12.7497739,188.67,188.64,0.03]
[1755396779965,45.71019042,188.66,188.64,0.03]
[1755396780165,3.56379033,188.65,188.64,0.03]
[1755396782295,4.21379033,188.65,188.64,0.03]
[1755396782605,9.51461195,188.65,188.64,0.03]
[1755396782799,17.2067359,188.65,188.64,0.03]
[1755396783006,12.75033581,188.65,188.64,0.03]
[1755396783314,22.62690421,188.65,188.62,0.03]
[1755396783597,7.69080067,188.63,188.62,0.03]
[1755396783766,48.294591,188.63,188.62,0.03]
[1755396783961,45.70886714,188.63,188.62,0.03]
[1755396784269,54.24597466,188.63,188.62,0.03]
[1755396784670,54.24377655,188.63,188.62,0.03]
[1755396789401,49.79007153,188.63,188.62,0.03]
[1755396796914,46.55434767,188.63,188.62,0.03]
[1755396797097,49.79007153,188.63,188.62,0.03]
[1755396799920,41.25296401,188.63,188.62,0.03]
[1755396800216,40.60296401,188.63,188.62,0.03]
[1755396801791,43.83868787,188.63,188.62,0.03]
[1755396802090,44.49868787,188.63,188.62,0.03]
[1755396802401,49.80007153,188.63,188.62,0.03]
[1755396802602,64.9062871,188.63,188.62,0.03]
[1755396803117,61.67056324,188.63,188.62,0.03]
[1755396803319,64.9062871,188.63,188.62,0.03]
[1755396808926,69.35999212,188.63,188.62,0.03]
[1755396810309,64.9062871,188.63,188.62,0.03]
[1755396810513,69.35999212,188.63,188.62,0.03]
[1755396810713,68.20445039,188.63,188.62,0.03]
[1755396811092,71.47017439,188.63,188.62,0.03]
[1755396812000,67.01646937,188.63,188.62,0.03]
[1755396812531,71.47017439,188.63,188.62,0.03]
[1755396813019,34.43017439,188.63,188.62,0.03]
[1755396813317,71.47017439,188.63,188.62,0.03]
[1755396815434,67.01646937,188.63,188.6,0.03]
[1755396815629,2.08018213,188.61,188.6,0.03]
[1755396815802,47.98509195,188.61,188.6,0.03]
[1755396816002,48.64509195,188.61,188.6,0.03]
[1755396816204,50.77032095,188.61,188.6,0.03]
[1755396816638,50.11032095,188.61,188.6,0.03]
[1755396817341,54.56181019,188.61,188.6,0.03]
[1755396819309,69.84015299,188.61,188.6,0.03]
[1755396819514,26.0,188.59,188.58,0.03]
[1755396819751,68.68314614,188.59,188.58,0.03]
[1755396819910,73.31001118,188.59,188.58,0.03]
[1755396820533,84.52867895,188.59,188.58,0.03]
[1755396820839,80.07808726,188.59,188.58,0.03]
[1755396821030,80.73808726,188.59,188.58,0.03]
[1755396822318,86.65424695,188.59,188.58,0.03]
[1755396823009,101.76046252,188.59,188.58,0.03]
[1755396823213,95.84430283,188.59,188.51,5.30475104]
[1755396823410,4.46608938,188.55,188.53,0.71]
[1755396823715,2.08018213,188.56,188.46,7.3861245]
[1755396823716,43.34314614,188.54,188.46,7.3861245]
[1755396823940,2.08018213,188.51,188.45,4.85150736]
[1755396824140,6.54662792,188.49,188.46,0.71]
[1755396824439,7.53030781,188.48,188.47,0.68]
[1755396824826,7.53030781,188.48,188.45,0.68]
[1755396825021,40.60296401,188.47,188.46,0.68]
[1755396825220,40.61085167,188.47,188.46,0.68]
[1755396827045,40.61085167,188.47,188.43,3.25491154]
[1755396827222,3.57085167,188.46,188.44,0.68]
[1755396827418,37.04,188.47,188.45,0.68]
[1755396827622,3.56451835,188.46,188.45,0.68]
[1755396831529,14.55743236,188.5,188.45,0.68]
[1755396831719,40.61857762,188.49,188.44,3.25491154]
[1755396831919,3.55857762,188.48,188.46,0.68]
[1755396832138,3.55857762,188.47,188.46,0.68]
[1755396833034,3.55857762,188.47,188.46,3.93491154]
[1755396833419,37.06,188.49,188.46,3.93491154]
[1755396833644,3.55647486,188.48,188.47,0.68]
[1755396834038,3.55647486,188.48,188.46,3.25491154]
[1755396834247,37.06,188.49,188.46,3.25491154]
[1755396834426,3.55632168,188.48,188.46,3.25491154]
[1755396834626,37.06,188.49,188.47,0.68]
[1755396834949,3.55573859,188.48,188.46,3.25491154]
[1755396835123,37.06,188.49,188.46,3.93491154]
[1755396835323,3.55575452,188.48,188.46,3.93491154]
[1755396835547,37.06,188.49,188.46,3.93491154]
[1755396835723,3.55510449,188.48,188.46,3.93491154]
[1755396835923,5.996671,188.5,188.46,3.93491154]
[1755396836123,40.61510412,188.49,188.46,3.93491154]
[1755396836318,3.55510412,188.48,188.46,3.93491154]
[1755396836524,37.06,188.49,188.46,3.93491154]
[1755396836740,3.55453657,188.48,188.46,3.93491154]
[1755396837049,37.06,188.49,188.46,3.93491154]
[1755396837229,3.55453657,188.48,188.46,3.93491154]
[1755396837429,3.5540823,188.48,188.46,3.93491154]
[1755396839151,3.5540823,188.48,188.46,0.68]
[1755396840352,3.5540823,188.48,188.46,3.93491154]
[1755396841126,3.5540823,188.48,188.47,0.68]
[1755396841430,40.6140823,188.49,188.47,3.93491154]
[1755396841754,3.5540823,188.48,188.47,3.93491154]
[1755396844527,3.5540823,188.48,188.47,3.25491154]
[1755396845054,3.5540823,188.48,188.47,3.93491154]
[1755396845228,0.69,188.54,188.47,3.93491154]
[1755396845431,40.61235487,188.53,188.48,0.68]
[1755396845741,37.06,188.55,188.52,3.25491154]
[1755396846058,37.75,188.58,188.54,3.25491154]
[1755396846365,4.24189536,188.57,188.56,3.25491154]
[1755396846566,4.24189536,188.57,188.54,0.68]
[1755396846748,3.55189536,188.56,188.55,3.25491154]
[1755396849744,4.24189536,188.56,188.54,3.25491154]
[1755396849951,0.69,188.55,188.54,3.25491154]
[1755396850471,0.69,188.55,188.53,3.25491154]
[1755396850764,0.69,188.57,188.54,3.93491154]
[1755396850969,3.55418704,188.56,188.54,3.93491154]
[1755396851166,3.55418704,188.55,188.54,3.93491154]
[1755396852367,3.55418704,188.55,188.54,9.23882582]
[1755396852567,3.55418704,188.56,188.54,9.23882582]
[1755396852766,37.12,188.58,188.55,3.25491154]
[1755396852966,3.55475381,188.57,188.56,3.25491154]
[1755396856258,3.55475381,188.57,188.56,3.97491154]
[1755396856457,0.06,188.58,188.56,9.27826325]
[1755396856652,0.06,188.58,188.57,3.97491154]
[1755396857968,0.06,188.58,188.57,9.27798201]
[1755396859670,4.29531193,188.58,188.56,3.25491154]
[1755396859865,4.23531193,188.57,188.56,3.25491154]
[1755396860066,4.23531193,188.57,188.55,3.25491154]
[1755396860272,0.68,188.57,188.55,3.25491154]
[1755396861374,0.68,188.57,188.54,3.25491154]
[1755396861886,0.68,188.57,188.54,3.97491154]
[1755396862059,0.68,188.57,188.55,3.25491154]
[1755396862258,3.55597285,188.56,188.55,3.25491154]
[1755396863287,0.68,188.57,188.55,3.25491154]
[1755396863477,3.55646225,188.56,188.55,3.25491154]
[1755396864084,3.55646225,188.56,188.54,6.02391158]
[1755396864263,0.68,188.57,188.55,3.25491154]
[1755396864775,3.55651404,188.56,188.55,3.25491154]
[1755396864974,0.06,188.58,188.55,3.25491154]
[1755396865182,3.55645756,188.57,188.55,8.55854292]
[1755396865379,0.74,188.58,188.55,8.55854292]
[1755396865581,3.556196,188.57,188.56,3.25491154]
[1755396868587,0.74,188.58,188.56,3.25491154]
[1755396868776,0.06,188.58,188.56,3.25491154]
[1755396868986,0.06,188.58,188.55,6.02363138]
[1755396869179,3.55542578,188.57,188.56,3.25491154]
[1755396874340,0.06,188.58,188.56,3.97491154]
[1755396874605,0.06,188.58,188.57,3.25491154]
[1755396874823,0.68,188.57,188.55,3.25491154]
[1755396875979,0.68,188.56,188.53,5.33414546]
[1755396876301,0.68,188.55,188.53,8.5890461]
[1755396877309,0.68,188.56,188.53,8.5890461]
[1755396877514,3.55801141,188.55,188.53,5.33413456]
[1755396877717,0.68,188.55,188.53,3.28491154]
[1755396878014,0.68,188.57,188.54,3.25491154]
[1755396878202,3.55855532,188.56,188.54,3.25491154]
[1755396878404,3.55855532,188.55,188.54,3.25491154]
[1755396878714,3.55855532,188.55,188.54,3.97491154]
[1755396879814,3.55855532,188.55,188.54,3.25491154]
[1755396882815,3.55855532,188.55,188.54,2.08061029]
[1755396889223,4.27855532,188.55,188.54,2.08061029]
[1755396889741,3.55855532,188.55,188.54,2.08061029]
[1755396890337,8.02211991,188.55,188.54,2.08061029]
[1755396891750,8.02211991,188.55,188.54,2.77061029]
[1755396893649,8.02211991,188.55,188.54,2.08061029]
[1755396894838,8.74211991,188.55,188.54,2.08061029]
[1755396898854,8.02211991,188.55,188.54,2.08061029]
[1755396899361,8.02211991,188.55,188.54,2.11061029]
[1755396899659,8.02211991,188.55,188.54,0.03]
[1755396899860,8.74211991,188.55,188.54,2.11061029]
[1755396901853,8.02211991,188.55,188.54,2.11061029]
[1755396902048,8.74211991,188.55,188.54,2.11061029]